Cogmind - Beta 14 @@@ ROGUE MODE // 2024.08.31 @ 21:51:39 Player: Evel Wyn Result: Self-destructed Performance ------------- Evolutions (1) 500 Regions Visited (2) 400 Robots Destroyed (19) 95 Value Destroyed (445) 445 Prototype IDs (0) 0 Alien Tech Used (0) 0 Bonus (0) 0 TOTAL SCORE: 1440 Bonus ------- None Cogmind --------- Core Integrity 260/400 Matter 149/300 Energy 250/250 System Corruption 0% Temperature Cool (0) Movement Walking (260) Ox2 Location -9/Materials Parts ------- > --- POWER (1) -------- Ion Engine > --- PROPULSION (2) --- Aluminum Leg > --- UTILITY (4) ------ Large Storage Unit Visual Processing Unit Improved Targeting Computer Power Shielding > --- WEAPON (2) ------- Mini Grenade Launcher > --- INVENTORY (15) --- Wheel Compact Wheel Heat Sink Medium Battery (150) High-capacity Battery (250) High-capacity Battery (4) High-capacity Battery (0) Visual Processing Unit Beam Cannon Beam Cannon Mini Grenade Launcher Mini Grenade Launcher Mini Grenade Launcher Peak State ------------ > --- POWER ------------ Light Ion Engine > --- PROPULSION ------- Aluminum Leg Aluminum Leg > --- UTILITY ---------- Large Storage Unit Visual Processing Unit Improved Targeting Computer Power Shielding > --- WEAPON ----------- Beam Cannon Mini Grenade Launcher > --- INVENTORY -------- Ion Engine Wheel Compact Wheel Heat Sink Small Storage Unit Medium Battery Visual Processing Unit Beam Cannon Beam Cannon Mini Grenade Launcher Mini Grenade Launcher Mini Grenade Launcher [Rating: 13] Favorites ----------- Power Light Ion Engine Engine Light Ion Engine Propulsion Aluminum Leg Treads Light Treads Leg Aluminum Leg Utility Large Storage Unit Device Heat Sink Storage Large Storage Unit Processor Visual Processing Unit Protection Power Shielding Weapon Assault Rifle Energy Gun Small Laser Energy Cannon Beam Cannon Ballistic Gun Assault Rifle Launcher Mini Grenade Launcher Build | -11 -10 -9 ------- Run | Yrd Mat Mat Slots Evolved 2 | . . 2 Power . | . . . Propulsion . | . . . Utility 2 | . . 2 Weapon . | . . . Parts Attached 27 | 6 18 3 Power 5 | 1 3 1 Engine 5 | 1 3 1 Core . | . . . Reactor . | . . . Propulsion 7 | 2 5 . Treads 2 | . 2 . Leg 5 | 2 3 . Wheel . | . . . Hover . | . . . Flight . | . . . Utility 6 | 1 3 2 Device 1 | . 1 . Storage 2 | 1 1 . Processor 2 | . . 2 Hackware . | . . . Protection 1 | . 1 . Artifact . | . . . Weapon 9 | 2 7 . Energy Gun 1 | 1 . . Energy Cannon 1 | . 1 . Ballistic Gun 3 | 1 2 . Ballistic Cannon . | . . . Launcher 4 | . 4 . Special Weapon . | . . . Impact Weapon . | . . . Slashing Weapon . | . . . Piercing Weapon . | . . . Special Melee Weapon . | . . . Unidentified Prototypes . | . . . Parts Lost 2 | . . 2 Power 1 | . . 1 Propulsion 1 | . . 1 Utility . | . . . Weapon . | . . . Highest Loss Streak 1 | . . 1 To Critical Strikes . | . . . Average Slot Usage (%) 94 | . 94 97 Engine 13 | . 13 11 Treads 9 | . 11 . Leg 16 | . 15 22 Device 1 | . 1 . Storage 13 | . 14 11 Processor 2 | . . 20 Protection 9 | . 9 11 Energy Gun 1 | . 2 . Energy Cannon 3 | . 2 10 Ballistic Gun 9 | . 10 . Launcher 11 | . 11 11 Peak Build Rating 13 | 6 9 13 Average Rating 8 | 3 7 12 On Entrance 5 | . 6 9 Naked Turns . | . . . Heaviest Build 31 | 13 31 30 Greatest Support 40 | 20 40 20 Greatest Overweight (x) 2 | . 2 1 Average Overweight (x) . | . . 1 Largest Inventory Capacity 15 | 8 15 15 Average Capacity 14 | 7 14 15 Most Carried 13 | 8 13 13 Average Carried 9 | 5 9 11 Final Capacity 15 | 8 15 15 Final Carried 13 | 6 13 13 Class Distribution -------------------- 100% | Mutant Dominant Class ---------------- Mutant | -10/Materials Mutant | -9/Materials Resources | -11 -10 -9 ----------- Run | Yrd Mat Mat Matter Collected 562 | 253 309 . Remotely . | . . . Salvage Created 500 | . 434 66 Parts 46 | . 33 13 Haulers Intercepted 1 | . 1 . Recyclers Shooed . | . . . Parts Field Recycled . | . . . Retrieved Matter . | . . . Parts Self-Destructed . | . . . Prevented . | . . . Kills | -11 -10 -9 ------- Run | Yrd Mat Mat Combat Hostiles Destroyed 12 | . 10 2 Guns 3 | . 3 . Cannons 1 | . . 1 AOE 8 | . 7 1 Classes Destroyed 7 | . 6 1 Builder 3 | . 2 1 Hauler 1 | . 1 . Recycler 2 | . 2 . Watcher 1 | . 1 . Swarmer 3 | . 3 . Grunt 8 | . 7 1 Sentry 1 | . . 1 Best Kill Streak 6 | . 6 2 Combat Bots Only 4 | . 4 1 Max Kills in Single Turn 4 | . 4 2 Gunslinging . | . . . Exploded 2 | . 2 1 Melee . | . . . Uniques/NPCs Destroyed . | . . . Combat | -11 -10 -9 -------- Run | Yrd Mat Mat Hostile Shots Fired 54 | . 34 20 Missed 17 | . 12 5 Damage Taken 753 | . 318 435 Core 220 | . 80 140 Absorbed by Shields . | . . . Redirected to Shielding 26 | . 3 23 Core Remaining (%) 84 | 100 68 . Volleys Fired 49 | . 34 15 Largest 2 | . 2 2 Hottest 90 | . 60 90 Shots Fired 60 | . 41 19 Gun 31 | . 31 . Cannon 13 | . 2 11 Launcher 16 | . 8 8 Special . | . . . Kinetic 31 | . 31 . Thermal 13 | . 2 11 Explosive 16 | . 8 8 Electromagnetic . | . . . Robot Hit Streak 4 | . 4 4 Robot Miss Streak 3 | . 3 1 Penetration Max . | . . . Secondary Targets . | . . . Shots Hit Robots 35 | . 23 12 Core Hits 30 | . 24 6 Critical Kills . | . . . Critical Parts Destroyed . | . . . Critical Strikes . | . . . Melee Attacks . | . . . Impact . | . . . Slashing . | . . . Piercing . | . . . Sneak Attacks . | . . . Combat Hostiles . | . . . Follow-up Attacks . | . . . Damage Inflicted 1507 | . 988 519 Guns 229 | . 229 . Cannons 123 | . . 123 Explosions 1155 | . 759 396 Melee . | . . . Ramming . | . . . Kinetic 229 | . 229 . Thermal 123 | . . 123 Explosive 1155 | . 759 396 Electromagnetic . | . . . Impact . | . . . Slashing . | . . . Piercing . | . . . Highest Corruption . | . . . Average Corruption . | . . . Corruption Purged . | . . . Corruption Blocked . | . . . Overload Shots . | . . . Overflow Damage 16 | . 5 11 Projectiles . | . . . Explosions 16 | . 5 11 Melee . | . . . Knockbacks . | . . . Impact . | . . . Kinetic . | . . . Secondary . | . . . Self-Inflicted Damage 228 | . 53 175 Shots 6 | . 2 4 Rammed . | . . . Targets Rammed . | . . . Kicked . | . . . Crushed . | . . . Highest Temperature 122 | . 40 122 Average Temperature 37 | . 14 44 Received Heat Transfer 255 | . 147 108 Siege Activations . | . . . Robots Corrupted . | . . . Combat Hostiles . | . . . Parts Fried . | . . . Impact Corruptions . | . . . Robots Melted . | . . . Combat Hostiles . | . . . Parts Melted . | . . . Heat Transferred 259 | . . 259 Parts Sabotaged . | . . . Parts Stolen . | . . . Parts Stripped . | . . . Power Chain Reactions . | . . . Alert | -11 -10 -9 ------- Run | Yrd Mat Mat Peak Influence 267 | . 267 187 Initial 73 | . . 73 Average 109 | . 117 110 Maximum Alert Level 1 | . 1 . Low Security (%) 93 | 100 92 100 Level 1 6 | . 7 . Level 2 . | . . . Level 3 . | . . . Level 4 . | . . . Level 5 . | . . . High Security . | . . . Max Security . | . . . Squads Dispatched 2 | . 2 . Investigation 1 | . 1 . Extermination . | . . . Reinforcement 1 | . 1 . Assault . | . . . Garrison . | . . . Intercept . | . . . Searches Triggered . | . . . Construction Impeded . | . . . Haulers Reinforced . | . . . Active Scanning Responses . | . . . Cargo Convoy Interrupts . | . . . Stealth | -11 -10 -9 --------- Run | Yrd Mat Mat Distress Signals 4 | . 3 1 Communications Jammed . | . . . Distress Signals . | . . . Times Spotted 25 | . 19 6 Peak Tracking Total 5 | . 5 3 Tactical Retreats . | . . . Traps | -11 -10 -9 ------- Run | Yrd Mat Mat Traps Triggered 5 | . 5 . Indirectly . | . . . Trap Hack Attempts . | . . . Triggered . | . . . Disarmed . | . . . Reprogrammed . | . . . Reused . | . . . Traps Extracted . | . . . Installed . | . . . Triggered . | . . . Machines | -11 -10 -9 ---------- Run | Yrd Mat Mat Machines Disabled 4 | . 4 . Max in Single Turn 3 | . 3 . Machines Repaired . | . . . Machines Dismantled . | . . . Machines Sabotaged . | . . . Overloaded Fab Kills . | . . . Hacking | -11 -10 -9 --------- Run | Yrd Mat Mat Machines Accessed 6 | . 6 . Terminals 5 | . 5 . Fabricators . | . . . Repair Stations . | . . . Recycling Units 1 | . 1 . Scanalyzers . | . . . Garrison Access . | . . . Total Hacks 11 | . 11 . Successful 6 | . 6 . Failed 5 | . 5 . Catastrophic . | . . . Database Lockouts . | . . . Manual 11 | . 11 . Terminals 7 | . 7 . Fabricators . | . . . Repair Stations . | . . . Recycling Units 4 | . 4 . Scanalyzers . | . . . Garrison Access . | . . . Terminal Hacks . | . . . Fabricator Hacks . | . . . Repair Station Hacks . | . . . Recycling Unit Hacks . | . . . Scanalyzer . | . . . Garrison Access Hacks . | . . . Unauthorized Hacks 6 | . 6 . Terminals 4 | . 4 . Botnet 4 | . 4 . Fabricators . | . . . Repair Stations . | . . . Recycling Units 2 | . 2 . Reject 1 | . 1 . Mask 1 | . 1 . Scanalyzers . | . . . Garrison Access . | . . . Data Cores Recovered . | . . . Used . | . . . Hacking Detections 4 | . 4 . Full Trace Events 1 | . 1 . Feedback Events . | . . . Feedback Blocked . | . . . Robot Schematics Acquired . | . . . Robots Built . | . . . Authchips . | . . . Time . | . . . Total Robot Build Rating . | . . . Part Schematics Acquired . | . . . Parts Built . | . . . Authchips . | . . . Time . | . . . Total Part Build Rating . | . . . Parts Repaired . | . . . Time . | . . . Parts Recycled . | . . . Recycled Matter . | . . . Retrieved Matter . | . . . Retrieved Components . | . . . Parts Scanalyzed . | . . . Part Schematics Acquired . | . . . Parts Damaged . | . . . Bothacking | -11 -10 -9 ------------ Run | Yrd Mat Mat Used RIF Installer . | . . . Robots Hacked . | . . . Non-combat . | . . . Combat . | . . . Robot Hacks Applied . | . . . Relay Couplers Released . | . . . Fabnet Peak Effective % . | . . . Robots Rewired . | . . . Allies Hacked . | . . . Hacks Repelled . | . . . Allies | -11 -10 -9 -------- Run | Yrd Mat Mat Total Allies . | . . . Largest Group . | . . . Highest-Rated Group . | . . . Highest-Rated Ally . | . . . Total Orders . | . . . Ally Attacks . | . . . Total Damage . | . . . Kills . | . . . Allies Corrupted . | . . . Allies Melted . | . . . Intel | -11 -10 -9 ------- Run | Yrd Mat Mat Robot Analysis Total . | . . . Derelict Logs Recovered . | . . . Drone Launches . | . . . Drone Recoveries . | . . . Exploration | -11 -10 -9 ------------- Run | Yrd Mat Mat Turns Passed 1295 | 79 1047 169 Spaces Moved 619 | 56 496 67 Core 7 | 7 . . Treads 208 | . 208 . Legs 404 | 49 288 67 Wheels . | . . . Hover . | . . . Flight . | . . . Fastest Speed 50 | 50 120 190 Average Speed 172 | 111 177 190 Slowest Speed 260 | 120 260 190 Overloaded Moves . | . . . Propulsion Burnouts . | . . . Robots Hopped . | . . . Cave-ins Triggered . | . . . Exploration Rate (%) 32 | 4 85 9 Regions Visited 2 Branch Regions . Pre-discovered Areas . | . . . Known Exits Taken . | . . . Unknown Exits Taken 2 | 1 1 . Scrap Searched . | . . . Spaces Dug 10 | . . 10 Terrain Destroyed 119 | . 73 46 Melee . | . . . Projectile . | . . . AOE 119 | . 73 46 Terrain Rammed . | . . . Walls Destroyed . | . . . Machines Disabled . | . . . Actions | -11 -10 -9 --------- Run | Yrd Mat Mat Total 780 | 71 620 89 Wait 52 | . 52 . Move 617 | 55 495 67 Hop . | . . . Pick Up 28 | 10 15 3 Fast Attach 11 | 2 8 1 Attach 12 | 4 6 2 Detach 1 | . 1 . Swap 4 | . 4 . Drop 6 | . 5 1 Fire 49 | . 34 15 Melee . | . . . Ram . | . . . Kick . | . . . Crush . | . . . Escape Stasis . | . . . Rewire . | . . . Trap . | . . . Miscellaneous . | . . . Route ------- -11/Scrapyard -10/Materials (discovered 3 exits: [*Mat x3]) -9/Materials History --------- Turn | Location | Event 28 | -11/Scrapyard | Discovered new exit (range 15) 80 | -11/Scrapyard | Entered Materials 325 | -10/Materials | Build established: Mutant 505 | -10/Materials | Discovered new exit (range 8) 724 | -10/Materials | Discovered new exit (range 15) 1089 | -10/Materials | Discovered new exit (range 8) 1127 | -10/Materials | Entered another Materials area 1127 | -9/Materials | Evolved 2 slots: Utility x2 1296 | -9/Materials | Self-destructed Last Messages --------------- 01165_ K-01 Serf collects debris. 01182_ Critical hit (Burn: +37). 01192_ Atomic Centrifuge disabled. 01206_ Lgt. Ion Engine destroyed. 01209_ Critical hit (Burn: +37). 01212_ U-05 Engineer builds a Wall. 01216_ U-05 Engineer lays Concrete. 01217_ Y-45 Defender destroyed. 01217_ U-05 Engineer destroyed. 01227_ The unstable cave ceiling collapses. 01260_ Dropped Sml. Storage Unit. 01265_ Acquired Hcp. Battery. 01276_ W-16 Scout sends out distress signal. 01281_ K-01 Serf collects debris. 01281_ Destroyed Hover Unit. 01286_ Beam Cannon severed. 01288_ G-34 Mercenary destroyed. 01292_ Aluminum Leg destroyed. 01292_ Destroyed Aluminum Leg. 01293_ The unstable cave ceiling collapses. Map ----- +----------------------------------------------------+ | ?????????????????????????????????????????????????? | | ???????????????????????#######???????????????????? | | ?????????############### #???????????????????? | | ?????????# #???????????????????? | | ?????????# #???????????????????? | | ?????????# #???????????????????? | | ?????????####+######+### #???????????????????? | | ???????????? ???? ?## ##???????????????????? | | ????????????"""???? ??# #????????????????????? | | ???????????"""""??# #?# #????????????????????? | | ???????????"""""??# #?# #????????????????????? | | ?????????? """"" ?# #?# #????????????????????? | | ?????????? """"" ?# #?# ######???????????????? | | ?????????# ?"""? # ### | ###?????????????? | | ?????????#??????? ###### %!# # #####??????????? | | ??????????????????????## =! [ #??????????? | | ??????????????????????# *%= """ #??????????? | | ??????????????????????# w [ "R" #??????????? | | ??????????????????????## " " #??????????? | | ??????????????????##### "" #??????????? | | ?????????? #??????????? | | ??????????? #### [ #??????????? | | ?????????????????# # = #??????????? | | ?????????????????# = ## #######??????????? | | ?????????????????# l ####????????????????? | | ?????????????????# !! ! @ #???????????????????? | | ?????????????????# !! #???????????????????? | | ?????????????????# ! ##???????????????????? | | ?????????????????##### # #????????????????????? | | ???????????????????? # #????????????????????? | | ??????????????????? % ?# #????????????????????? | | ?????????????????? ?+ +????????????????????? | | ?????????????????# ??# #????????????????????? | | ?????????????????# []??# #????????????????????? | | ?????????????????# ]???# #????????????????????? | | ?????????????????####???# #????????????????????? | | ????????????????????????? ????????????????????? | | ????????????????????????? #????????????????????? | | ????????????????????????? #????????????????????? | | ????????????????????????? m#????????????????????? | | ????????????????????????? #????????????????????? | | ????????????????????????? ?????????????????????? | | ?????????????????????????w ?????????????????????? | | ?????????????????????????????????????????????????? | | ?????????????????????????????????????????????????? | | ?????????????????????????????????????????????????? | | ?????????????????????????????????????????????????? | | ?????????????????????????????????????????????????? | | ?????????????????????????????????????????????????? | | ?????????????????????????????????????????????????? | +----------------------------------------------------+ Best States ------------- Heat Dissipation 35 Energy Generation 10 Energy Capacity 250 Matter Stores 293 Matter Capacity 300 Sight Range 18 Terrain Scan Density 10 Power Shielding 33 Evasion (%) 55 Targeting Accuracy 6 Recoil Reduction 2 Item Schematics ----------------- None Robot Schematics ------------------ None Fabricated ------------ Nothing Alien Tech Used ----------------- None Achievements -------------- None Challenges ------------ None Game ------ Seed ArmoredImprovedBooster Manual? 0 Play Time 00:17:58 Cumulative 13.6 hours Start 2024.08.31 @ 21:29:21 End 2024.08.31 @ 21:51:39 Sessions 1 Manual Loads 0 Difficulty Rogue Special Mode None Game No. 13 Rogue 13 Adventurer 0 Explorer 0 Win Type - Total 0 Types 0/0/0/0/0/0/0/0/0 Lore% 13 Gallery% 16 Achievement% 16 Wizard Run 0 Options --------- Layout 1 ASCII 0 Keyboard 0 Movement Numpad Keybinds 0 Fullscreen 2 Font 48/Tamsyn Map View 50x35 Zoom Use 0% Tactical HUD 1 Map Filters NONE Filters NONE Steam 1 RUN: da6d31cc-3a84-47b6-8eb8-87c4ffaee28c